Workbook

Sheet Page 180
A1: HOW NOT TO ANALYZE A LEASE
A2: Asset cost | B2: ='Pages 182,83'!B2 -> 600000
A3: Interest rate | B3: ='Pages 182,83'!B3 -> 0.12
A4: Lease rental payment | B4: 140000
A5: Annual depreciation | B5: ='Pages 182,83'!B5 -> 100000
A6: Tax rate | B6: ='Pages 182,83'!B6 -> 0.4
A8: NPV (leasing) | B8: =-PV(B3,5,B4*(1-B6))+B4*(1-B6) -> 386801.201 | C8: =GETFORMULA(B8) -> <-- =-PV(B3,5,B4*(1-B6))+B4*(1-B6)
A9: NPV (buying) | B9: =B2+PV(B3,6,B6*B5) -> 435543.7071 | C9: =GETFORMULA(B9) -> <-- =B2+PV(B3,6,B6*B5)

Sheet Pages 182,83
A1: EQUIVALENT-LOAN METHOD—THE LESSEE POINT OF VIEW
A2: Asset cost | B2: 600000
A3: Interest rate | B3: 0.12
A4: Lease rental payment | B4: 140000
A5: Annual depreciation | B5: =B2/6 -> 100000
A6: Tax rate | B6: 0.4
A8: Year | B8: 0 | C8: 1 | D8: 2 | E8: 3 | F8: 4 | G8: 5 | H8: 6
A9: After-tax cash flows from leasing
A10: After-tax lease rental | B10: =-$B$4*(1-$B$6) -> -84000 | C10: -84000 | D10: -84000 | E10: -84000 | F10: -84000 | G10: -84000 | I10: =GETFORMULA(G10) -> <-- =-$B$4*(1-$B$6)
A12: After-tax cash flows from buying the asset
A13: Asset cost | B13: =-B2 -> -600000
A14: Depreciation tax shield | C14: =$B$5*$B$6 -> 40000 | D14: 40000 | E14: 40000 | F14: 40000 | G14: 40000 | H14: 40000 | I14: =GETFORMULA(G14) -> <-- =$B$5*$B$6
A15: Net cash from buying | B15: =B13+B14 -> -600000 | C15: =C13+C14 -> 40000 | D15: 40000 | E15: 40000 | F15: 40000 | G15: 40000 | H15: 40000 | I15: =GETFORMULA(G15) -> <-- =G13+G14
A17: Differential cash flow: Lease saves lessee
A18: Lease minus buy | B18: =B10-B15 -> 516000 | C18: =C10-C15 -> -124000 | D18: -124000 | E18: -124000 | F18: -124000 | G18: -124000 | H18: -40000 | I18: =GETFORMULA(G18) -> <-- =G10-G15
A20: IRR of differential cash flow | B20: =IRR(B18:H18,0) -> 0.08299767377 | C20: =GETFORMULA(B20) -> <-- =IRR(B18:H18,0)
A21: Decision?? | B21: =IF(B20<(1-B6)*B3,"Lease","Buy") -> Buy | C21: =GETFORMULA(B21) -> <-- =IF(B20<(1-B6)*B3,"Lease","Buy")
A24: =ggetformula(C26) -> =D26+B26-B27 | D24: Split of loan repayment between: | G24: =ggetformula(E26) -> =B26-B27
A25: Year | B25: Principal at beg. year | C25: Loan payment, end year | D25: Interest | E25: Repayment of principal | F25: After-tax loan repayment | G25: Lease minus buy cash flows, years 1-6
A26: 1 | B26: =NPV((1-$B$6)*$B$3,G26:$G$31) -> 532070.1174 | C26: =D26+B26-B27 -> 149539.3656 | D26: =$B$3*B26 -> 63848.41408 | E26: =B26-B27 -> 85690.95155 | F26: =(1-$B$6)*D26+E26 -> 124000 | G26: =-TRANSPOSE(C18:H18) -> 124000 | H26: =GETFORMULA(G26) -> <-- {=-TRANSPOSE(C18:H18)}
A27: 2 | B27: =NPV((1-$B$6)*$B$3,G27:$G$31) -> 446379.1658 | C27: =D27+B27-B28 -> 145426.2 | D27: 53565.4999 | E27: =B27-B28 -> 91860.70006 | F27: 124000 | G27: 124000
A28: 3 | B28: =NPV((1-$B$6)*$B$3,G28:$G$31) -> 354518.4657 | C28: =D28+B28-B29 -> 141016.8864 | D28: 42542.21589 | E28: =B28-B29 -> 98474.67047 | F28: 124000 | G28: 124000
A29: 4 | B29: =NPV((1-$B$6)*$B$3,G29:$G$31) -> 256043.7953 | C29: =D29+B29-B30 -> 136290.1022 | D29: 30725.25543 | E29: =B29-B30 -> 105564.8467 | F29: 124000 | G29: 124000
A30: 5 | B30: =NPV((1-$B$6)*$B$3,G30:$G$31) -> 150478.9485 | C30: =D30+B30-B31 -> 131222.9895 | D30: 18057.47382 | E30: =B30-B31 -> 113165.5157 | F30: 124000 | G30: 124000
A31: 6 | B31: =NPV((1-$B$6)*$B$3,G31:$G$31) -> 37313.43284 | C31: =D31+B31-K9 -> 41791.04478 | D31: 4477.61194 | E31: =B31-K9 -> 37313.43284 | F31: 40000 | G31: 40000
A33: =ggetformula(B26) -> =NPV((1-$B$6)*$B$3,G26:$G$31)
C34: =ggetformula(D26) -> =$B$3*B26

Sheet Page 185
A1: THE LESSOR'S PROBLEM Calculating the lowest acceptable lease rate
A2: Asset cost | B2: 600000
A3: Interest rate | B3: 0.12
A4: Lowest acceptable lease payment | B4: 134821.9395 | C4: <-- Computed either with Goal Seek or Solver
A5: Annual depreciation | B5: =B2/6 -> 100000
A6: Tax rate | B6: 0.4
A8: Year | B8: 0 | C8: 1 | D8: 2 | E8: 3 | F8: 4 | G8: 5 | H8: 6
A9: Lessor after-tax cash flows from leasing
A10: After-tax lease rental | B10: =$B$4*(1-$B$6) -> 80893.16371 | C10: 80893.16371 | D10: 80893.16371 | E10: 80893.16371 | F10: 80893.16371 | G10: 80893.16371
A12: Lessor after-tax cash flows from buying the asset
A13: Asset cost | B13: =-B2 -> -600000
A14: Depreciation tax shield | C14: =$B$5*$B$6 -> 40000 | D14: 40000 | E14: 40000 | F14: 40000 | G14: 40000 | H14: 40000
A15: Net cash from buying | B15: =B13+B14 -> -600000 | C15: 40000 | D15: 40000 | E15: 40000 | F15: 40000 | G15: 40000 | H15: 40000
A17: Lessor cash flows
A18: Lease + buy | B18: =B10+B15 -> -519106.8363 | C18: 120893.1637 | D18: 120893.1637 | E18: 120893.1637 | F18: 120893.1637 | G18: 120893.1637 | H18: 40000
A20: IRR of differential cash flow | B20: =IRR(B18:H18) -> 0.07219999998 | C20: =GETFORMULA(B20) -> <-- =IRR(B18:H18)
D23: Split of loan repayment between:
A24: Year | B24: Principal at beg. year | C24: Loan payment, end year | D24: Interest | E24: Repayment of principal | F24: After-tax loan repayment | G24: Lease minus buy cash flows, years 1-6
A25: 1 | B25: =NPV((1-$B$6)*$B$3,G25:$G$30) -> -519399.4016 | C25: =D25+B25-B26 -> -145824.335 | D25: =$B$3*B25 -> -62327.9282 | E25: =B25-B26 -> -83496.40679 | F25: =(1-$B$6)*D25+E25 -> -120893.1637 | G25: =-TRANSPOSE(C18:H18) -> -120893.1637
A26: 2 | B26: =NPV((1-$B$6)*$B$3,G26:$G$30) -> -435902.9948 | C26: =D26+B26-B27 -> -141816.5075 | D26: -52308.35938 | E26: =B26-B27 -> -89508.14808 | F26: -120893.1637 | G26: -120893.1637
A27: 3 | B27: =NPV((1-$B$6)*$B$3,G27:$G$30) -> -346394.8468 | C27: =D27+B27-B28 -> -137520.1164 | D27: -41567.38161 | E27: =B27-B28 -> -95952.73475 | F27: -120893.1637 | G27: -120893.1637
A28: 4 | B28: =NPV((1-$B$6)*$B$3,G28:$G$30) -> -250442.112 | C28: =D28+B28-B29 -> -132914.3851 | D28: -30053.05344 | E28: =B28-B29 -> -102861.3316 | F28: -120893.1637 | G28: -120893.1637
A29: 5 | B29: =NPV((1-$B$6)*$B$3,G29:$G$30) -> -147580.7804 | C29: =D29+B29-B30 -> -127977.0412 | D29: -17709.69364 | E29: =B29-B30 -> -110267.3475 | F29: -120893.1637 | G29: -120893.1637
A30: 6 | B30: =NPV((1-$B$6)*$B$3,G30:$G$30) -> -37313.43284 | C30: =D30+B30-K9 -> -41791.04478 | D30: -4477.61194 | E30: =B30-K9 -> -37313.43284 | F30: -40000 | G30: -40000

Sheet Page 187
A1: GREENVILLE ELECTRIC CORP.
A2: Turbine cost | B2: 12000000
A3: Greenville's borrowing rate | B3: 0.06
A4: Lease payment | B4: 2300000
A6: Year | B6: 0 | C6: 1 | D6: 2 | E6: 3 | F6: 4 | G6: 5
A7: Lessee after-tax lease costs
A8: After-tax lease rental | B8: =-$B$4 -> -2300000 | C8: -2300000 | D8: -2300000 | E8: -2300000 | F8: -2300000 | G8: -2300000
A10: Lessee after-tax purchase costs
A11: Asset cost | B11: =-B2 -> -12000000
A12: Depreciation tax shield (Greenville Electric's tax rate = 0) | C12: 0 | D12: 0 | E12: 0 | F12: 0 | G12: 0
A13: Net cash from buying | B13: =B11+B12 -> -12000000 | C13: 0 | D13: 0 | E13: 0 | F13: 0 | G13: 0
A15: Cash saved by leasing
A16: Lease - purchase cash flows | B16: =B8-B13 -> 9700000 | C16: =C8+C13 -> -2300000 | D16: =D8+D13 -> -2300000 | E16: =E8+E13 -> -2300000 | F16: =F8+F13 -> -2300000 | G16: =G8+G13 -> -2300000
A18: IRR of differential cash flow | B18: =IRR(B16:G16,0) -> 0.05956168856 | C18: =GETFORMULA(B18) -> <-- =IRR(B16:G16,0)
A19: Greenville's after-tax borrowing cost | B19: =B3 -> 0.06 | C19: =GETFORMULA(B19) -> <-- =B3
A21: UNITED TURBINE LEASING CORPORATION
A22: Turbine cost | B22: =B2 -> 12000000
A23: Lease payment | B23: =B4 -> 2300000
A24: Depreciable life (years) | B24: 3
A25: ="Depreciation (straight line, "&TEXT(B24,"0")&" years)" -> Depreciation (straight line, 3 years) | B25: =B22/B24 -> 4000000
A26: United Turbine's borrowing rate | B26: =B3 -> 0.06
A27: United Turbine's corporate tax rate | B27: 0.4
A29: Year | B29: 0 | C29: 1 | D29: 2 | E29: 3 | F29: 4 | G29: 5
A30: Lessor cash flows
A31: Equipment cost | B31: =-B22 -> -12000000
A32: Lease payment, after tax | B32: =(1-$B$27)*$B$4 -> 1380000 | C32: 1380000 | D32: 1380000 | E32: 1380000 | F32: 1380000 | G32: 1380000
A33: Depreciation tax shield | C33: =IF(C29<=$B$24,$B$25*$B$27,0) -> 1600000 | D33: =IF(D29<=$B$24,$B$25*$B$27,0) -> 1600000 | E33: =IF(E29<=$B$24,$B$25*$B$27,0) -> 1600000 | F33: =IF(F29<=$B$24,$B$25*$B$27,0) -> 0 | G33: =IF(G29<=$B$24,$B$25*$B$27,0) -> 0
A34: Total lessor cash flow | B34: =SUM(B31:B33) -> -10620000 | C34: 2980000 | D34: 2980000 | E34: 2980000 | F34: 1380000 | G34: 1380000
A36: IRR of lessor cash flows | B36: =IRR(B34:G34) -> 0.03858923638 | C36: =GETFORMULA(B36) -> <-- =IRR(B34:G34)
A37: United Turbine's after-tax borrowing cost | B37: =B26*(1-B27) -> 0.036 | C37: =GETFORMULA(B37) -> <-- =B26*(1-B27)

Sheet Page 188
A1: RESIDUAL VALUES IN LEASE ANALYSIS
A2: Asset cost | B2: 600000
A3: Interest rate | B3: 0.12
A4: Lease rental payment | B4: 140000
A5: Annual depreciation | B5: =B2/6 -> 100000
A6: Tax rate | B6: 0.4
A7: Residual value | B7: 100000 | C7: <-- Anticipated to be realized in year 7; fully taxed
A9: Year | B9: 0 | C9: 1 | D9: 2 | E9: 3 | F9: 4 | G9: 5 | H9: 6 | I9: 7
A10: After-tax cash flows from leasing
A11: After-tax lease rental | B11: =-$B$4*(1-$B$6) -> -84000 | C11: -84000 | D11: -84000 | E11: -84000 | F11: -84000 | G11: -84000
A13: After-tax cash flows from buying the asset
A14: Asset cost | B14: =-B2 -> -600000
A15: Depreciation tax shield | C15: =$B$5*$B$6 -> 40000 | D15: 40000 | E15: 40000 | F15: 40000 | G15: 40000 | H15: 40000
A16: After-tax residual | I16: =(1-B6)*B7 -> 60000
A17: Net cash from buying | B17: =SUM(B14:B16) -> -600000 | C17: =SUM(C14:C16) -> 40000 | D17: 40000 | E17: 40000 | F17: 40000 | G17: 40000 | H17: 40000 | I17: 60000
A19: Differential cash flow
A20: Lease minus buy | B20: =B11-B17 -> 516000 | C20: -124000 | D20: -124000 | E20: -124000 | F20: -124000 | G20: -124000 | H20: -40000 | I20: -60000
A22: IRR of differential cash flow | B22: =IRR(B20:I20,0) -> 0.1049425314 | C22: =GETFORMULA(B22) -> <-- =IRR(B20:I20,0)
A23: Decision?? | B23: =IF(B22<(1-B6)*B3,"Lease","Buy") -> Buy | C23: =GETFORMULA(B23) -> <-- =IF(B22<(1-B6)*B3,"Lease","Buy")

Sheet Page 189
A1: RESIDUAL VALUES IN LEASE ANALYSIS Estimated residual value multiplied by certainty-equivalence factor which represents uncertainty about realizing residual
A2: Asset cost | B2: 600000
A3: Interest rate | B3: 0.12
A4: Lease rental payment | B4: 140000
A5: Annual depreciation | B5: =B2/6 -> 100000
A6: Tax rate | B6: 0.4
A7: Residual value | B7: 100000 | C7: <-- Anticipated to be realized in year 7; fully taxed
A8: Certainty-equivalence factor for residual | B8: 0.7
A10: Year | B10: 0 | C10: 1 | D10: 2 | E10: 3 | F10: 4 | G10: 5 | H10: 6 | I10: 7
A11: After-tax cash flows from leasing
A12: After-tax lease rental | B12: =-$B$4*(1-$B$6) -> -84000 | C12: -84000 | D12: -84000 | E12: -84000 | F12: -84000 | G12: -84000
A14: After-tax cash flows from buying the asset
A15: Asset cost | B15: =-B2 -> -600000
A16: Depreciation tax shield | C16: =$B$5*$B$6 -> 40000 | D16: 40000 | E16: 40000 | F16: 40000 | G16: 40000 | H16: 40000
A17: After-tax residual | I17: =(1-B6)*B7*B8 -> 42000 | J17: =GETFORMULA(I17) -> <-- =(1-B6)*B7*B8
A18: Net cash from buying | B18: =SUM(B15:B17) -> -600000 | C18: 40000 | D18: 40000 | E18: 40000 | F18: 40000 | G18: 40000 | H18: 40000 | I18: 42000
A20: Differential cash flow
A21: Lease minus buy | B21: =B12-B18 -> 516000 | C21: -124000 | D21: -124000 | E21: -124000 | F21: -124000 | G21: -124000 | H21: -40000 | I21: -42000
A23: IRR of differential cash flow | B23: =IRR(B21:I21,0) -> 0.09876418637 | C23: =GETFORMULA(B23) -> <-- =IRR(B21:I21,0)
A24: Decision?? | B24: =IF(B23<(1-B6)*B3,"Lease","Buy") -> Buy | C24: =GETFORMULA(B24) -> <-- =IF(B23<(1-B6)*B3,"Lease","Buy")

Sheet Page 192
A1: BASIC LEVERAGED LEASE EXAMPLE
A2: Cost of asset | B2: 1000000
A3: Lease term | B3: 15
A4: Residual value | B4: 300000 | C4: <-- Realized year 16
A5: Equity | B5: 200000
A6: Debt | B6: =B2-B5 -> 800000 | C6: <-- 15-year term loan, equal payments of interest and principal
A7: Interest | B7: 0.1
A8: Annual debt payment | B8: =PMT(B7,B3,-B6) -> 105179.0215 | C8: =GETFORMULA(B8) -> <-- =PMT(B7,B3,-B6) | G8: =ggetformula(I14) -> =(1-tax)*C14+tax*D14-(1-tax)*G14-H14
A9: Annual rent received | B9: 110000
A10: Tax rate | B10: 0.4
A12: Year | B12: Equity Invested | C12: Rental or salvage | D12: Depreciation | E12: Principal at start of year | F12: Loan payment | G12: Interest | H12: Repayment of principal | I12: Cash flow to equity
A13: 0 | B13: =-B5 -> -200000 | I13: =B13 -> -200000
A14: 1 | C14: =$B$9 -> 110000 | D14: =0.1428*B2 -> 142800 | E14: =B6 -> 800000 | F14: =$B$8 -> 105179.0215 | G14: =$B$7*E14 -> 80000 | H14: =F14-G14 -> 25179.02151 | I14: =(1-tax)*C14+tax*D14-(1-tax)*G14-H14 -> 49940.97849
A15: 2 | C15: =C14 -> 110000 | D15: =0.2449*B2 -> 244900 | E15: =E14-H14 -> 774820.9785 | F15: 105179.0215 | G15: =$B$7*E15 -> 77482.09785 | H15: =F15-G15 -> 27696.92366 | I15: =(1-tax)*C15+tax*D15-(1-tax)*G15-H15 -> 89773.81763
A16: 3 | C16: 110000 | D16: =0.1749*B2 -> 174900 | E16: =E15-H15 -> 747124.0548 | F16: 105179.0215 | G16: =$B$7*E16 -> 74712.40548 | H16: =F16-G16 -> 30466.61603 | I16: 60665.94068
A17: 4 | C17: 110000 | D17: =0.125*B2 -> 125000 | E17: 716657.4388 | F17: 105179.0215 | G17: 71665.74388 | H17: 33513.27763 | I17: 39487.27604
A18: 5 | C18: 110000 | D18: =0.0892*B2 -> 89200 | E18: 683144.1612 | F18: 105179.0215 | G18: 68314.41612 | H18: 36864.60539 | I18: 23826.74494
A19: 6 | C19: 110000 | D19: =D18 -> 89200 | E19: 646279.5558 | F19: 105179.0215 | G19: 64627.95558 | H19: 40551.06593 | I19: 22352.16072
A20: 7 | C20: 110000 | D20: =D19 -> 89200 | E20: 605728.4898 | F20: 105179.0215 | G20: 60572.84898 | H20: 44606.17253 | I20: 20730.11808
A21: 8 | C21: 110000 | D21: =0.0448*B2 -> 44800 | E21: 561122.3173 | F21: 105179.0215 | G21: 56112.23173 | H21: 49066.78978 | I21: 1185.871183
A22: 9 | C22: 110000 | E22: 512055.5275 | F22: 105179.0215 | G22: 51205.55275 | H22: 53973.46876 | I22: -18696.80041
A23: 10 | C23: 110000 | E23: 458082.0588 | F23: 105179.0215 | G23: 45808.20588 | H23: 59370.81563 | I23: -20855.73916
A24: 11 | C24: 110000 | E24: 398711.2432 | F24: 105179.0215 | G24: 39871.12432 | H24: 65307.89719 | I24: -23230.57178
A25: 12 | C25: 110000 | E25: 333403.346 | F25: 105179.0215 | G25: 33340.3346 | H25: 71838.68691 | I25: -25842.88767
A26: 13 | C26: 110000 | E26: 261564.6591 | F26: 105179.0215 | G26: 26156.46591 | H26: 79022.5556 | I26: -28716.43515
A27: 14 | C27: 110000 | E27: 182542.1034 | F27: 105179.0215 | G27: 18254.21034 | H27: 86924.81117 | I27: -31877.33737
A28: 15 | C28: 110000 | E28: 95617.29228 | F28: 105179.0215 | G28: 9561.729228 | H28: 95617.29228 | I28: -35354.32982
A29: 16 | C29: =B4 -> 300000 | I29: 180000
G31: IRR of cash flows | I31: =IRR(I13:I29) -> 0.1245668472 | J31: =GETFORMULA(I31) -> <-- =IRR(I13:I29)
A33: Data table: NPV of leveraged lease cash flows
B34: =I13+NPV(A34,I14:I29) -> 103388.8064 | C34: =GETFORMULA(B34)&" , table header" -> <-- =I13+NPV(A34,I14:I29) , table header
A35: 0 | B35: 103388.8064
A36: 0.01 | B36: 88796.46916
A37: 0.02 | B37: 76063.82092
A38: 0.03 | B38: 64865.21566
A39: 0.04 | B39: 54936.2877
A40: 0.05 | B40: 46062.10931
A41: 0.06 | B41: 38067.68738
A42: 0.07 | B42: 30810.32646
A43: 0.08 | B43: 24173.48301
A44: 0.09 | B44: 18061.81325
A45: 0.1 | B45: 12397.17773
A46: 0.12 | B46: 2163.725888
A47: 0.14 | B47: -6916.049791
A48: 0.16 | B48: -15108.06871
A49: 0.18 | B49: -22596.17544
A50: 0.2 | B50: -29509.33032
A51: 0.22 | B51: -35939.62255
